Workbook

Sheet 必ずお読みください
A2: お取引業者様各位
A4: ご使用方法について何点かお願い事項がございます。
A5: ご確認のほどお願い申しあげます。
A7: ・ インボイス登録のない業者様は課税表示のない専用の請求書をご利用ください。
A9: ・ インボイス登録業者様で通常請求の場合は『100％請求用』をご利用ください。
A11: ・ 契約金額に対して一部だけ請求する場合（内金や残金が発生する請求）は
A12: 『請求書（出来高用）』をご利用ください。
A13: ※その際通常請求用の『請求書原本消費税10％』の用紙は不要になります。
A14: ※出来高請求する場合は『出来高内訳書』の添付をお願いします。
A15: 会社様によって契約が異なるため、3種類の請求書がござますが、上記を参考に
A16: どちらか一方の用紙を使い分けてくださいますようお願いします。
A18: ・ ご面倒ではございますが、各現場につき一枚の請求書をご記入くださいますようお願いします。
A19: ※複数現場を一枚の請求書に記載いたしますと、各現場担当者へ振り分けるため、請求処理が
A20: 遅れることがございます。
A22: ・ 請求書は必ず弊社への郵送をお願いします。
A23: ※現場事務所や担当者へ直接お渡しになりますと、紛失等の原因になりますので
A24: お支払いが遅れる事がございます。
A26: ・ 請求書は20日締め、翌々月5日払いになります。
A27: 25日までの必着に間に合わない場合は、次の支払になりますのでご注意ください。
B29: ご不明な点がございましたら、総務担当山口までご連絡ください。
B30: 問い合わせメールアドレス： yoruko.y@gmail.com

Sheet インボイス登録の無い業者様用
B1: 〒 | D1: 359-1111 | AB1: NO.
B2: 埼玉県所沢市緑町2-1-20合田ビル2階 | AF2: 2023-10-20
B3: 有限会社 埼玉小島建設 御中 | AB3: 発行年月日
AB4: 郵便番号
AB5: ご住所
O6: 請 求 書 | AB6: 御社名
AB7: 電話
AB8: FAX
AA10: 担当者名：
B12: 請 求 総 合 計
B13: =AC18+AC78+AC138+AC198 -> 0
AC17: 請 求 額
AC18: =AC48 -> 0
C21: 現 場 名 | T21: 埼玉小島建設 現場担当者名
B26: 月日 | E26: 工事内容・納品名 | V26: 数量 | Z26: 単位 | AC26: 単価 | AH26: 金額 | AM26: 備考 | AQ26: 1ページ目
AH27: =V27*AC27 -> 0 | AQ27: 2ページ目
AH28: 0 | AQ28: 3ページ目
AH29: 0 | AQ29: 4ページ目
AH30: 0
AH31: 0 | BE31: 普通
AH32: 0 | BE32: 当座
AH33: 0
AH34: 0
AH35: 0
AH36: 0
AH37: 0
AH38: 0
AH39: 0
AH40: 0
AH41: 0
AH42: 0
AH43: 0
AH44: 0
AH45: 0
AH46: 0
AH47: 0
B48: 小計 | AC48: =SUM(AH26:AL46) -> 0
C49: ※ | D49: 毎月20日締切り、25日郵送必着でお願いします。翌々月5日支払いとなります。
B50: 銀行名
B53: 支店名
B56: 口座番号 | H56: 普通
B57: 口座名義人
B61: 〒 | D61: 359-1111 | AB61: NO.
B62: 埼玉県所沢市緑町2-1-20合田ビル2階 | AF62: 2023-05-01
B63: 有限会社 埼玉小島建設 御中 | AB63: 発行年月日
AB64: 郵便番号
AB65: ご住所
O66: 請 求 書 | AB66: 御社名
AB67: 電話
AB68: FAX
AA70: 担当者名：
AC77: 請 求 額
AC78: =AC108 -> 0
C81: 現 場 名 | T81: 埼玉小島建設 現場担当者名
B86: 月日 | E86: 工事内容・納品名 | V86: 数量 | Z86: 単位 | AC86: 単価 | AH86: 金額 | AM86: 備考 | AQ86: 1ページ目
AH87: =V87*AC87 -> 0 | AQ87: 2ページ目
AH88: 0 | AQ88: 3ページ目
AH89: 0 | AQ89: 4ページ目
AH90: 0
AH91: 0 | BE91: 普通
AH92: 0 | BE92: 当座
AH93: 0
AH94: 0
AH95: 0
AH96: 0
AH97: 0
AH98: 0
AH99: 0
AH100: 0
AH101: 0
AH102: 0
AH103: 0
AH104: 0
AH105: 0
AH106: 0
AH107: 0
B108: 小計 | AC108: =SUM(AH86:AL106) -> 0
C109: ※ | D109: 毎月20日締切り、25日郵送必着でお願いします。翌々月5日支払いとなります。
B110: 銀行名
B113: 支店名
B116: 口座番号 | H116: 普通
B117: 口座名義人
B121: 〒 | D121: 359-1111 | AB121: NO.
B122: 埼玉県所沢市緑町2-1-20合田ビル2階 | AF122: 2023-05-01
B123: 有限会社 埼玉小島建設 御中 | AB123: 発行年月日
AB124: 郵便番号
AB125: ご住所
O126: 請 求 書 | AB126: 御社名
AB127: 電話
AB128: FAX
AA130: 担当者名：
AC137: 請 求 額
AC138: =AC168 -> 0
C141: 現 場 名 | T141: 埼玉小島建設 現場担当者名
B146: 月日 | E146: 工事内容・納品名 | V146: 数量 | Z146: 単位 | AC146: 単価 | AH146: 金額 | AM146: 備考 | AQ146: 1ページ目
AH147: =V147*AC147 -> 0 | AQ147: 2ページ目
AH148: 0 | AQ148: 3ページ目
AH149: 0 | AQ149: 4ページ目
AH150: 0
AH151: 0 | BE151: 普通
AH152: 0 | BE152: 当座
AH153: 0
AH154: 0
AH155: 0
AH156: 0
AH157: 0
AH158: 0
AH159: 0
AH160: 0
AH161: 0
AH162: 0
AH163: 0
AH164: 0
AH165: 0
AH166: 0
AH167: 0
B168: 小計 | AC168: =SUM(AH146:AL166) -> 0
C169: ※ | D169: 毎月20日締切り、25日郵送必着でお願いします。翌々月5日支払いとなります。
B170: 銀行名
B173: 支店名
B176: 口座番号 | H176: 普通
B177: 口座名義人
B181: 〒 | D181: 359-1111 | AB181: NO.
B182: 埼玉県所沢市緑町2-1-20合田ビル2階 | AF182: 2023-05-01
B183: 有限会社 埼玉小島建設 御中 | AB183: 発行年月日
AB184: 郵便番号
AB185: ご住所
O186: 請 求 書 | AB186: 御社名
AB187: 電話
AB188: FAX
AA190: 担当者名：
AC197: 請 求 額
AC198: =AC228 -> 0
C201: 現 場 名 | T201: 埼玉小島建設 現場担当者名
B206: 月日 | E206: 工事内容・納品名 | V206: 数量 | Z206: 単位 | AC206: 単価 | AH206: 金額 | AM206: 備考 | AQ206: 1ページ目
AH207: =V207*AC207 -> 0 | AQ207: 2ページ目
AH208: 0 | AQ208: 3ページ目
AH209: 0 | AQ209: 4ページ目
AH210: 0
AH211: 0 | BE211: 普通
AH212: 0 | BE212: 当座
AH213: 0
AH214: 0
AH215: 0
AH216: 0
AH217: 0
AH218: 0
AH219: 0
AH220: 0
AH221: 0
AH222: 0
AH223: 0
AH224: 0
AH225: 0
AH226: 0
AH227: 0
B228: 小計 | AC228: =SUM(AH206:AL226) -> 0
C229: ※ | D229: 毎月20日締切り、25日郵送必着でお願いします。翌々月5日支払いとなります。
B230: 銀行名
B233: 支店名
B236: 口座番号 | H236: 普通
B237: 口座名義人

Sheet 100％請求用(通常はこちらを使用してください）
B1: 〒 | D1: 359-1111 | AB1: NO.
B2: 埼玉県所沢市緑町2-1-20合田ビル2階 | AF2: 2023-10-20
B3: 有限会社 埼玉小島建設 御中 | AB3: 発行年月日
AB4: 登録番号
AB5: 郵便番号
O6: 請 求 書 | AB6: ご住所
AB7: 御社名
AB8: 電話
AB9: FAX
AA10: 担当者名：
B12: 請 求 総 合 計
B13: =SUM(AC18,AC78,AC138,AC198,AC258,AC318,AC378,AC438,AC498,AC558,AC618,AC678,AC738,AC798,AC858,AC918,AC978,AC1038,AC1098,AC1158,'請求書(出来高で請求がある場合はこちらです）'!H30:R35,'請求書(出来高で請求がある場合はこちらです）'!$H$113:$R$118) -> 0
C17: 税 別 合 計 | P17: 消 費 税 （10％） | AC17: 税 込 合 計
C18: =SUM(AH27:AL48) -> 0 | P18: =AC48*0.1 -> 0 | AC18: =C18+P18 -> 0
C21: 現 場 名 | T21: 埼玉小島建設 現場担当者名
B26: 月日 | E26: 工事内容・納品名 | V26: 数量 | Z26: 単位 | AC26: 単価 | AH26: 金額 | AM26: 課税 | AN26: 備考 | AQ26: 1ページ目
AH27: =V27*AC27 -> 0 | AM27: 課税 | AQ27: 2ページ目
AH28: 0 | AM28: 課税 | AQ28: 3ページ目
AH29: 0 | AM29: 課税 | AQ29: 4ページ目
AH30: 0 | AM30: 課税 | AQ30: 5ページ目
AH31: 0 | AM31: 課税 | AQ31: 6ページ目 | BE31: 普通
AH32: 0 | AM32: 課税 | AQ32: 7ページ目 | BE32: 当座
AH33: 0 | AM33: 課税 | AQ33: 8ページ目
AH34: 0 | AM34: 課税 | AQ34: 9ページ目
AH35: 0 | AM35: 課税 | AQ35: 10ページ目
AH36: 0 | AM36: 課税 | AQ36: 11ページ目
AH37: 0 | AM37: 課税 | AQ37: 12ページ目
AH38: 0 | AM38: 課税 | AQ38: 13ページ目
AH39: 0 | AM39: 課税 | AQ39: 14ページ目
AH40: 0 | AM40: 課税 | AQ40: 15ページ目
AH41: 0 | AM41: 課税 | AQ41: 16ページ目
AH42: 0 | AM42: 課税 | AQ42: 17ページ目
AH43: 0 | AM43: 課税 | AQ43: 18ページ目
AH44: 0 | AM44: 課税 | AQ44: 19ページ目
AH45: 0 | AM45: 課税 | AQ45: 20ページ目
AH46: 0 | AM46: 課税
AH47: 0 | AM47: 課税
B48: 消費税対象額 | AC48: =SUMIF(AM27:AM47,"課税",AH27:AL47) -> 0
C49: ※ | D49: 毎月20日締切り、25日郵送必着でお願いします。翌々月5日支払いとなります。
B50: 銀行名
B53: 支店名
B56: 口座番号 | H56: 普通
B57: 口座名義人
B61: 〒 | D61: 359-1111 | AB61: NO.
B62: 埼玉県所沢市緑町2-1-20合田ビル2階 | AF62: =$AF$2 -> 2023-10-20
B63: 有限会社 埼玉小島建設 御中 | AB63: 発行年月日
AB64: 登録番号 | AE64: =$AE$4 -> 0
AB65: 郵便番号
O66: 請 求 書 | AB66: ご住所
AB67: 御社名
AB68: 電話
AB69: FAX
AA70: 担当者名：
C77: 税 別 合 計 | P77: 消 費 税 （10％） | AC77: 税 込 合 計
C78: =SUM(AH87:AL108) -> 0 | P78: =AC108*0.1 -> 0 | AC78: =C78+P78 -> 0
C81: 現 場 名 | T81: 埼玉小島建設 現場担当者名
B86: 月日 | E86: 工事内容・納品名 | V86: 数量 | Z86: 単位 | AC86: 単価 | AH86: 金額 | AM86: 課税 | AN86: 備考 | AQ86: 1ページ目
AH87: =V87*AC87 -> 0 | AM87: 課税 | AQ87: 2ページ目
AH88: 0 | AM88: 課税 | AQ88: 3ページ目
AH89: 0 | AM89: 課税 | AQ89: 4ページ目
AH90: 0 | AM90: 課税 | AQ90: 5ページ目
AH91: 0 | AM91: 課税 | AQ91: 6ページ目 | BE91: 普通
AH92: 0 | AM92: 課税 | AQ92: 7ページ目 | BE92: 当座
AH93: 0 | AM93: 課税 | AQ93: 8ページ目
AH94: 0 | AM94: 課税 | AQ94: 9ページ目
AH95: 0 | AM95: 課税 | AQ95: 10ページ目
AH96: 0 | AM96: 課税 | AQ96: 11ページ目
AH97: 0 | AM97: 課税 | AQ97: 12ページ目
AH98: 0 | AM98: 課税 | AQ98: 13ページ目
AH99: 0 | AM99: 課税 | AQ99: 14ページ目
AH100: 0 | AM100: 課税 | AQ100: 15ページ目
AH101: 0 | AM101: 課税 | AQ101: 16ページ目
AH102: 0 | AM102: 課税 | AQ102: 17ページ目
AH103: 0 | AM103: 課税 | AQ103: 18ページ目
AH104: 0 | AM104: 課税 | AQ104: 19ページ目
AH105: 0 | AM105: 課税 | AQ105: 20ページ目
AH106: 0 | AM106: 課税
AH107: 0 | AM107: 課税
B108: 消費税対象額 | AC108: =SUMIF(AM87:AM107,"課税",AH87:AL107) -> 0
C109: ※ | D109: 毎月20日締切り、25日郵送必着でお願いします。翌々月5日支払いとなります。
B110: 銀行名
B113: 支店名
B116: 口座番号 | H116: 普通
B117: 口座名義人
B121: 〒 | D121: 359-1111 | AB121: NO.
B122: 埼玉県所沢市緑町2-1-20合田ビル2階 | AF122: =$AF$2 -> 2023-10-20
B123: 有限会社 埼玉小島建設 御中 | AB123: 発行年月日
AB124: 登録番号 | AE124: =$AE$4 -> 0
AB125: 郵便番号
O126: 請 求 書 | AB126: ご住所
AB127: 御社名
AB128: 電話
AB129: FAX
AA130: 担当者名：
C137: 税 別 合 計 | P137: 消 費 税 （10％） | AC137: 税 込 合 計
C138: =SUM(AH147:AL168) -> 0 | P138: =AC168*0.1 -> 0 | AC138: =C138+P138 -> 0
C141: 現 場 名 | T141: 埼玉小島建設 現場担当者名
B146: 月日 | E146: 工事内容・納品名 | V146: 数量 | Z146: 単位 | AC146: 単価 | AH146: 金額 | AM146: 課税 | AN146: 備考 | AQ146: 1ページ目
AH147: =V147*AC147 -> 0 | AM147: 課税 | AQ147: 2ページ目
AH148: 0 | AM148: 課税 | AQ148: 3ページ目
AH149: 0 | AM149: 課税 | AQ149: 4ページ目
AH150: 0 | AM150: 課税 | AQ150: 5ページ目
AH151: 0 | AM151: 課税 | AQ151: 6ページ目 | BE151: 普通
AH152: 0 | AM152: 課税 | AQ152: 7ページ目 | BE152: 当座
AH153: 0 | AM153: 課税 | AQ153: 8ページ目
AH154: 0 | AM154: 課税 | AQ154: 9ページ目
AH155: 0 | AM155: 課税 | AQ155: 10ページ目
AH156: 0 | AM156: 課税 | AQ156: 11ページ目
AH157: 0 | AM157: 課税 | AQ157: 12ページ目
AH158: 0 | AM158: 課税 | AQ158: 13ページ目
AH159: 0 | AM159: 課税 | AQ159: 14ページ目
AH160: 0 | AM160: 課税 | AQ160: 15ページ目
AH161: 0 | AM161: 課税 | AQ161: 16ページ目
AH162: 0 | AM162: 課税 | AQ162: 17ページ目
AH163: 0 | AM163: 課税 | AQ163: 18ページ目
AH164: 0 | AM164: 課税 | AQ164: 19ページ目
AH165: 0 | AM165: 課税 | AQ165: 20ページ目
AH166: 0 | AM166: 課税
AH167: 0 | AM167: 課税
B168: 消費税対象額 | AC168: =SUMIF(AM147:AM167,"課税",AH147:AL167) -> 0
C169: ※ | D169: 毎月20日締切り、25日郵送必着でお願いします。翌々月5日支払いとなります。
B170: 銀行名
B173: 支店名
B176: 口座番号 | H176: 普通
B177: 口座名義人
B181: 〒 | D181: 359-1111 | AB181: NO.
B182: 埼玉県所沢市緑町2-1-20合田ビル2階 | AF182: =$AF$2 -> 2023-10-20
B183: 有限会社 埼玉小島建設 御中 | AB183: 発行年月日
AB184: 登録番号 | AE184: =$AE$4 -> 0
AB185: 郵便番号
O186: 請 求 書 | AB186: ご住所
AB187: 御社名
AB188: 電話
AB189: FAX
AA190: 担当者名：
C197: 税 別 合 計 | P197: 消 費 税 （10％） | AC197: 税 込 合 計
C198: =SUM(AH207:AL228) -> 0 | P198: =AC228*0.1 -> 0 | AC198: =C198+P198 -> 0
C201: 現 場 名 | T201: 埼玉小島建設 現場担当者名
B206: 月日 | E206: 工事内容・納品名 | V206: 数量 | Z206: 単位 | AC206: 単価 | AH206: 金額 | AM206: 課税 | AN206: 備考 | AQ206: 1ページ目
AH207: =V207*AC207 -> 0 | AM207: 課税 | AQ207: 2ページ目
AH208: 0 | AM208: 課税 | AQ208: 3ページ目
AH209: 0 | AM209: 課税 | AQ209: 4ページ目
AH210: 0 | AM210: 課税 | AQ210: 5ページ目
AH211: 0 | AM211: 課税 | AQ211: 6ページ目 | BE211: 普通
AH212: 0 | AM212: 課税 | AQ212: 7ページ目 | BE212: 当座
AH213: 0 | AM213: 課税 | AQ213: 8ページ目
AH214: 0 | AM214: 課税 | AQ214: 9ページ目
AH215: 0 | AM215: 課税 | AQ215: 10ページ目
AH216: 0 | AM216: 課税 | AQ216: 11ページ目
AH217: 0 | AM217: 課税 | AQ217: 12ページ目
AH218: 0 | AM218: 課税 | AQ218: 13ページ目
AH219: 0 | AM219: 課税 | AQ219: 14ページ目
AH220: 0 | AM220: 課税 | AQ220: 15ページ目
AH221: 0 | AM221: 課税 | AQ221: 16ページ目
AH222: 0 | AM222: 課税 | AQ222: 17ページ目
AH223: 0 | AM223: 課税 | AQ223: 18ページ目
AH224: 0 | AM224: 課税 | AQ224: 19ページ目
AH225: 0 | AM225: 課税 | AQ225: 20ページ目
AH226: 0 | AM226: 課税
AH227: 0 | AM227: 課税
B228: 消費税対象額 | AC228: =SUMIF(AM207:AM227,"課税",AH207:AL227) -> 0
C229: ※ | D229: 毎月20日締切り、25日郵送必着でお願いします。翌々月5日支払いとなります。
B230: 銀行名
B233: 支店名
B236: 口座番号 | H236: 普通
B237: 口座名義人
B241: 〒 | D241: 359-1111 | AB241: NO.
B242: 埼玉県所沢市緑町2-1-20合田ビル2階 | AF242: =$AF$2 -> 2023-10-20
B243: 有限会社 埼玉小島建設 御中 | AB243: 発行年月日
AB244: 登録番号 | AE244: =$AE$4 -> 0
AB245: 郵便番号
O246: 請 求 書 | AB246: ご住所
AB247: 御社名
AB248: 電話
AB249: FAX
AA250: 担当者名：
C257: 税 別 合 計 | P257: 消 費 税 （10％） | AC257: 税 込 合 計
C258: =SUM(AH267:AL288) -> 0 | P258: =AC288*0.1 -> 0 | AC258: =C258+P258 -> 0
C261: 現 場 名 | T261: 埼玉小島建設 現場担当者名
B266: 月日 | E266: 工事内容・納品名 | V266: 数量 | Z266: 単位 | AC266: 単価 | AH266: 金額 | AM266: 課税 | AN266: 備考 | AQ266: 1ページ目
AH267: =V267*AC267 -> 0 | AM267: 課税 | AQ267: 2ページ目
AH268: 0 | AM268: 課税 | AQ268: 3ページ目
AH269: 0 | AM269: 課税 | AQ269: 4ページ目
AH270: 0 | AM270: 課税 | AQ270: 5ページ目
AH271: 0 | AM271: 課税 | AQ271: 6ページ目 | BE271: 普通
AH272: 0 | AM272: 課税 | AQ272: 7ページ目 | BE272: 当座
AH273: 0 | AM273: 課税 | AQ273: 8ページ目
AH274: 0 | AM274: 課税 | AQ274: 9ページ目
AH275: 0 | AM275: 課税 | AQ275: 10ページ目
AH276: 0 | AM276: 課税 | AQ276: 11ページ目
AH277: 0 | AM277: 課税 | AQ277: 12ページ目
AH278: 0 | AM278: 課税 | AQ278: 13ページ目
AH279: 0 | AM279: 課税 | AQ279: 14ページ目
AH280: 0 | AM280: 課税 | AQ280: 15ページ目
AH281: 0 | AM281: 課税 | AQ281: 16ページ目
AH282: 0 | AM282: 課税 | AQ282: 17ページ目
AH283: 0 | AM283: 課税 | AQ283: 18ページ目
AH284: 0 | AM284: 課税 | AQ284: 19ページ目
AH285: 0 | AM285: 課税 | AQ285: 20ページ目
AH286: 0 | AM286: 課税
... 622 more rows

Sheet 請求書(出来高で請求がある場合はこちらです）
AI1: 1
M2: 請 求 書（出来高用）
A6: 〒359-1111 埼玉県所沢市緑町2-1-20 合田ビル2階 | AB6: 請求年月日
AB7: 登 録 番 号
Y13: 月分 | AA13: 出来高内訳書 計 | AN13: 枚
B15: 有限会社 埼玉小島建設 | N15: 御中
Q18: 宛
C23: 下記の通り請求いたします。
B30: 請求金額(税込) | H30: =U59+H36 -> 0
B36: 0.1 | H36: =U59*B36 -> 0
F46: 工事番号 | AB46: 第 | AH46: 回請求
F51: 取 決 め 金 額 （税抜）
F55: 前回までの請求額
F59: 今回請求額
F63: 取決め残額 | U63: =U51-U55-U59 -> 0
B72: 銀行名
B75: 支店名
B78: 口座番号 | H78: ='100％請求用(通常はこちらを使用してください）'!$H$56 -> 普通
B79: 口座名義人
AI84: 2
M85: 請 求 書（出来高用）
AB89: 請求年月日 | AF89: =IF(AF6="", "", AF6) -> 
A90: 〒359-1111 埼玉県所沢市緑町2-1-20 合田ビル2階 | AB90: 登 録 番 号 | AF90: =IF(AF7="", "", AF7) -> 
Y96: 月分 | AA96: 出来高内訳書 計 | AN96: 枚
B98: 有限会社 埼玉小島建設 | N98: 御中
Q101: 宛
C106: 下記の通り請求いたします。
B113: 請求金額(税込) | H113: =U142+H119 -> 0
B119: 0.1 | H119: =U142*B119 -> 0
F129: 工事番号 | AB129: 第 | AH129: 回請求
F134: 取 決 め 金 額 （税抜）
F138: 前回までの請求額
F142: 今回請求額
F146: 取決め残額 | U146: =U134-U138-U142 -> 0
B155: 銀行名
B158: 支店名
B161: 口座番号 | H161: ='100％請求用(通常はこちらを使用してください）'!$H$56 -> 普通
B162: 口座名義人

Sheet 出来高内訳書(出来高請求書に添付してください）
A1: 出 来 高 内 訳 書
A3: 工 事 種 別 | B3: 契 約 金 額 | F3: 累計出来高 ① | H3: 前回までの出来高 ② | J3: 今回出来高 (①－②) | L3: 備 考
B4: 単位 | C4: 数量 | D4: 単価 | E4: 金額 | F4: 数量 | G4: 金額 | H4: 数量 | I4: 金額 | J4: 数量 | K4: 金額
E5: =IF(AND(C5="",D5=""),"",ROUNDDOWN(C5*D5,0)) ->  | G5: =IF(AND(D5="",F5=""),"",ROUNDDOWN(D5*F5,0)) ->  | I5: =IF(AND(D5="",H5=""),"",ROUNDDOWN(D5*H5,0)) ->  | J5: =IF(AND(F5="",H5=""),"",F5-H5) ->  | K5: =IF(AND(G5="",I5=""),"",SUM(G5)-SUM(I5)) -> 
E6: =IF(AND(C6="",D6=""),"",ROUNDDOWN(C6*D6,0)) -> 
E7: =IF(AND(C7="",D7=""),"",ROUNDDOWN(C7*D7,0)) -> 
E9: =IF(AND(C9="",D9=""),"",ROUNDDOWN(C9*D9,0)) -> 
I55: =IF(AND(D55="",H55=""),"",ROUNDDOWN(D55*H55,0)) -> 

Sheet 出来高内訳書(記入例)
A1: 出 来 高 内 訳 書
A3: 工 事 種 別 | B3: 契 約 金 額 | F3: 累計出来高 ① | H3: 前回までの出来高 ② | J3: 今回出来高 (①－②) | L3: 備 考
B4: 単位 | C4: 数量 | D4: 単価 | E4: 金額 | F4: 数量 | G4: 金額 | H4: 数量 | I4: 金額 | J4: 数量 | K4: 金額
A5: 仮設工事 | E5: =IF(AND(C5="",D5=""),"",ROUNDDOWN(C5*D5,0)) ->  | G5: =IF(AND(D5="",F5=""),"",ROUNDDOWN(D5*F5,0)) ->  | I5: =IF(AND(D5="",H5=""),"",ROUNDDOWN(D5*H5,0)) ->  | J5: =IF(AND(F5="",H5=""),"",F5-H5) ->  | K5: =IF(AND(G5="",I5=""),"",SUM(G5)-SUM(I5)) -> 
A6: トップスラブ手摺 | B6: ｍ | C6: 123 | D6: 987 | E6: =IF(AND(C6="",D6=""),"",ROUNDDOWN(C6*D6,0)) -> 121401 | F6: 100 | G6: 98700 | H6: 50 | I6: 49350 | J6: 50 | K6: 49350
A7: ・ 通常請求の場合は『請求書原本消費税10％』をご利用ください。 | B7: ｍ | C7: 123 | D7: 9876 | E7: 1214748 | F7: 100 | G7: 987600 | H7: 50 | I7: 493800 | J7: 50 | K7: 493800
A8: 立駐基礎周り足場組払い | B8: 式 | C8: 1 | D8: 5000000 | E8: 5000000 | F8: 0.5 | G8: 2500000 | H8: 0.2 | I8: 1000000 | J8: 0.3 | K8: 1500000
A9: 小計 | E9: =SUM(E6:E8) -> 6336149 | G9: =SUM(G6:G8) -> 3586300 | I9: =SUM(I6:I8) -> 1543150 | K9: 2043150
A10: 『請求書（出来高用）』をご利用ください。
A11: トップスラブコンクリート打設 | B11: ㎥ | C11: 555.5 | D11: 1234 | E11: 685487 | F11: 200 | G11: 246800 | H11: 100 | I11: 123400 | J11: 100 | K11: 123400
A12: 立駐基礎コン打設 | B12: ㎥ | C12: 1000 | D12: 1234 | E12: 1234000 | F12: 400 | G12: 493600 | H12: 120 | I12: 148080 | J12: 280 | K12: 345520
A13: 小計 | E13: =SUM(E11:E12) -> 1919487 | G13: =SUM(G11:G12) -> 740400 | I13: =SUM(I11:I12) -> 271480 | K13: 468920
A14: 値引 | B14: 式 | C14: 1 | D14: -55636 | E14: -55636 | G14: -26700 | I14: -14630 | K14: =IF(AND(G14="",I14=""),"",SUM(G14)-SUM(I14)) -> -12070
A15: 合計 | E15: =SUM(E9,E13,E14) -> 8200000 | G15: =SUM(G9,G13,G14) -> 4300000 | I15: =SUM(I9,I13,I14) -> 1800000 | K15: 2500000
